[Event "*** Titled Tuesday Blitz"]
[Site "Chess.com"]
[Date "2020.05.12"]
[Round "5"]
[White "Semen_Khanin"]
[Black "TigranMukhutdinov"]
[Result "1-0"]
[WhiteElo "2686"]
[BlackElo "2426"]
[TimeControl "180+1"]
[EndTime "10:54:36 PDT"]
[Termination "Semen_Khanin won by checkmate"]

1. e4 {[%clk 0:03:00.9]} 1... c5 {[%clk 0:03:00.2]} 2. Nf3 {[%clk 0:02:59.2]}
2... Nc6 {[%clk 0:03:00.7]} 3. Bb5 {[%clk 0:02:56.6]} 3... g6 {[%clk 0:03:00.4]}
4. O-O {[%clk 0:02:56.5]} 4... Bg7 {[%clk 0:03:00.5]} 5. c3 {[%clk 0:02:57.1]}
5... Nf6 {[%clk 0:03:00.9]} 6. Re1 {[%clk 0:02:55.9]} 6... O-O {[%clk
0:03:01.1]} 7. d4 {[%clk 0:02:56.2]} 7... d5 {[%clk 0:03:01.4]} 8. e5 {[%clk
0:02:55.9]} 8... Ne4 {[%clk 0:03:01.8]} 9. Be3 {[%clk 0:02:55]} 9... cxd4 {[%clk
0:02:55.1]} 10. cxd4 {[%clk 0:02:52.5]} 10... Bd7 {[%clk 0:02:48.4]} 11. Nbd2
{[%clk 0:02:50.4]} 11... Nxd2 {[%clk 0:02:48]} 12. Qxd2 {[%clk 0:02:49.3]} 12...
a6 {[%clk 0:02:46]} 13. Be2 {[%clk 0:02:45.5]} 13... Rc8 {[%clk 0:02:44.8]} 14.
h4 {[%clk 0:02:44.4]} 14... Bg4 {[%clk 0:02:43.4]} 15. Rac1 {[%clk 0:02:40.5]}
15... h5 {[%clk 0:02:27.1]} 16. Bg5 {[%clk 0:02:35.7]} 16... Re8 {[%clk
0:02:23.2]} 17. Rc5 {[%clk 0:02:25.5]} 17... Qd7 {[%clk 0:02:18.2]} 18. Rec1
{[%clk 0:02:24.3]} 18... e6 {[%clk 0:02:17.8]} 19. Qf4 {[%clk 0:02:20.6]} 19...
Nb4 {[%clk 0:02:07.3]} 20. a3 {[%clk 0:02:14.8]} 20... Nc6 {[%clk 0:01:56.9]}
21. b4 {[%clk 0:02:12.6]} 21... Bf8 {[%clk 0:01:50]} 22. Bf6 {[%clk 0:02:10.5]}
22... Bg7 {[%clk 0:01:45]} 23. R1c3 {[%clk 0:01:50.3]} 23... b6 {[%clk
0:01:28.5]} 24. Rxc6 {[%clk 0:01:50.3]} 24... Rxc6 {[%clk 0:01:28.5]} 25. Rxc6
{[%clk 0:01:51.2]} 25... Qxc6 {[%clk 0:01:28.5]} 26. Ng5 {[%clk 0:01:49]} 26...
Bf5 {[%clk 0:01:05.3]} 27. g4 {[%clk 0:01:39.9]} 27... hxg4 {[%clk 0:01:04.3]}
28. h5 {[%clk 0:01:31.9]} 28... gxh5 {[%clk 0:00:59.7]} 29. Bd3 {[%clk
0:01:15.1]} 29... Bxf6 {[%clk 0:00:46.5]} 30. exf6 {[%clk 0:01:13.9]} 30... Bxd3
{[%clk 0:00:42.1]} 31. Ne4 {[%clk 0:01:00.9]} 31... Rc8 {[%clk 0:00:20.1]} 32.
Qg5+ {[%clk 0:00:55.7]} 32... Kf8 {[%clk 0:00:20.6]} 33. Qg7+ {[%clk 0:00:56]}
33... Ke8 {[%clk 0:00:21.3]} 34. Qg8+ {[%clk 0:00:56.5]} 34... Kd7 {[%clk
0:00:22.2]} 35. Qxf7+ {[%clk 0:00:56.8]} 35... Kd8 {[%clk 0:00:22.9]} 36. Qe7#
{[%clk 0:00:57.3]} 1-0

[Event "*** Titled Tuesday Blitz"]
[Site "Chess.com"]
[Date "2020.05.12"]
[Round "5"]
[White "Yuri202062"]
[Black "Nastya_Rakhmangulova"]
[Result "1-0"]
[WhiteElo "2483"]
[BlackElo "2287"]
[TimeControl "180+1"]
[EndTime "10:54:36 PDT"]
[Termination "Yuri202062 won by resignation"]

1. d4 {[%clk 0:03:00.9]} 1... d5 {[%clk 0:03:00.1]} 2. c4 {[%clk 0:03:00.3]}
2... c6 {[%clk 0:03:00.7]} 3. Nc3 {[%clk 0:02:59.4]} 3... Nf6 {[%clk 0:02:59.5]}
4. e3 {[%clk 0:02:59.5]} 4... a6 {[%clk 0:02:59]} 5. Bd3 {[%clk 0:02:59.5]} 5...
b5 {[%clk 0:02:58.9]} 6. b3 {[%clk 0:02:59.7]} 6... Bg4 {[%clk 0:02:59.2]} 7.
Nge2 {[%clk 0:02:59]} 7... e6 {[%clk 0:01:15.8]} 8. Qc2 {[%clk 0:02:57.7]} 8...
Nbd7 {[%clk 0:01:16.1]} 9. Ng3 {[%clk 0:02:49.3]} 9... Bd6 {[%clk 0:01:13]} 10.
h3 {[%clk 0:02:44.5]} 10... Bxg3 {[%clk 0:01:12.2]} 11. hxg4 {[%clk 0:02:44.5]}
11... Bd6 {[%clk 0:01:07.4]} 12. g5 {[%clk 0:02:41]} 12... bxc4 {[%clk
0:00:59.5]} 13. bxc4 {[%clk 0:02:39.4]} 13... dxc4 {[%clk 0:00:58.2]} 14. Bxc4
{[%clk 0:02:36.6]} 14... Nd5 {[%clk 0:00:58]} 15. e4 {[%clk 0:02:27.5]} 15...
Nxc3 {[%clk 0:00:49.3]} 16. Qxc3 {[%clk 0:02:27]} 16... Qb6 {[%clk 0:00:46.6]}
17. O-O {[%clk 0:02:21.4]} 17... Qb4 {[%clk 0:00:43]} 18. Qxb4 {[%clk
0:01:59.8]} 18... Bxb4 {[%clk 0:00:43.9]} 19. Rb1 {[%clk 0:02:00]} 19... Bc3
{[%clk 0:00:40.9]} 20. Be3 {[%clk 0:02:00]} 20... O-O {[%clk 0:00:35.2]} 21.
Rfc1 {[%clk 0:01:58.6]} 21... Ba5 {[%clk 0:00:34.1]} 22. Rb7 {[%clk 0:01:52]}
22... Rfd8 {[%clk 0:00:32.5]} 23. Be2 {[%clk 0:01:42.4]} 23... Nb8 {[%clk
0:00:21.1]} 24. Rc5 {[%clk 0:01:33.1]} 24... Bd2 {[%clk 0:00:08.1]} 25. Bxd2
{[%clk 0:01:30.4]} 25... Rxd4 {[%clk 0:00:08.7]} 26. Be3 {[%clk 0:01:25.1]}
26... Ra4 {[%clk 0:00:08.2]} 27. Rc2 {[%clk 0:01:07.1]} 27... Rxe4 {[%clk
0:00:08]} 28. Rd2 {[%clk 0:01:03.2]} 28... h6 {[%clk 0:00:06.4]} 29. Rd8+ {[%clk
0:00:57]} 29... Kh7 {[%clk 0:00:06.2]} 30. Bd3 {[%clk 0:00:57.3]} 1-0

[Event "*** Titled Tuesday Blitz"]
[Site "Chess.com"]
[Date "2020.05.12"]
[Round "5"]
[White "Generalas"]
[Black "the_drake"]
[Result "1-0"]
[WhiteElo "2383"]
[BlackElo "2204"]
[TimeControl "180+1"]
[EndTime "10:54:38 PDT"]
[Termination "Generalas won by resignation"]

1. Nf3 {[%clk 0:03:00.9]} 1... d5 {[%clk 0:02:58.9]} 2. g3 {[%clk 0:02:59.3]}
2... Nf6 {[%clk 0:02:58.3]} 3. Bg2 {[%clk 0:02:59.2]} 3... c6 {[%clk 0:02:54.6]}
4. b3 {[%clk 0:02:58.1]} 4... Bf5 {[%clk 0:02:50.1]} 5. Bb2 {[%clk 0:02:57.7]}
5... Qc8 {[%clk 0:02:47.2]} 6. O-O {[%clk 0:02:55.1]} 6... Bh3 {[%clk
0:02:46.9]} 7. c4 {[%clk 0:02:54.3]} 7... Bxg2 {[%clk 0:02:44.3]} 8. Kxg2 {[%clk
0:02:55.2]} 8... h5 {[%clk 0:02:44.3]} 9. cxd5 {[%clk 0:02:32.1]} 9... cxd5
{[%clk 0:02:42]} 10. h4 {[%clk 0:02:06.3]} 10... Nc6 {[%clk 0:02:38.5]} 11. d3
{[%clk 0:02:04.1]} 11... Ng4 {[%clk 0:02:36.6]} 12. Nc3 {[%clk 0:01:59.7]} 12...
e6 {[%clk 0:02:32.8]} 13. Rc1 {[%clk 0:01:57.7]} 13... a6 {[%clk 0:02:31.2]} 14.
Na4 {[%clk 0:01:55.5]} 14... Qd8 {[%clk 0:02:16.3]} 15. e4 {[%clk 0:01:46.2]}
15... Rc8 {[%clk 0:01:58.8]} 16. exd5 {[%clk 0:01:31.9]} 16... exd5 {[%clk
0:01:56.3]} 17. Re1+ {[%clk 0:01:29]} 17... Be7 {[%clk 0:01:56]} 18. Qe2 {[%clk
0:01:14.4]} 18... O-O {[%clk 0:01:53.1]} 19. Rxc6 {[%clk 0:00:50.8]} 19... Rxc6
{[%clk 0:01:48.5]} 20. Qxe7 {[%clk 0:00:50.2]} 20... Qb8 {[%clk 0:01:45.2]} 21.
Nd4 {[%clk 0:00:39.3]} 21... Rg6 {[%clk 0:01:42.6]} 22. Nf5 {[%clk 0:00:29.7]}
22... Kh7 {[%clk 0:01:13.3]} 23. Re2 {[%clk 0:00:27.7]} 23... Rc8 {[%clk
0:01:09.9]} 24. Qxf7 {[%clk 0:00:25.3]} 24... Rc7 {[%clk 0:01:09.8]} 25. Qe8
{[%clk 0:00:24]} 25... Qa7 {[%clk 0:01:08.3]} 26. Ne7 {[%clk 0:00:20.2]} 26...
Rcc6 {[%clk 0:00:40]} 27. Qg8+ {[%clk 0:00:19.7]} 1-0

[Event "*** Titled Tuesday Blitz"]
[Site "Chess.com"]
[Date "2020.05.12"]
[Round "5"]
[White "Gajuchess"]
[Black "Andro2"]
[Result "1-0"]
[WhiteElo "2694"]
[BlackElo "2427"]
[TimeControl "180+1"]
[EndTime "10:54:39 PDT"]
[Termination "Gajuchess won on time"]

1. d4 {[%clk 0:03:00.9]} 1... a6 {[%clk 0:02:57.3]} 2. e4 {[%clk 0:02:53.4]}
2... e6 {[%clk 0:02:56.1]} 3. Bd3 {[%clk 0:02:54.3]} 3... d5 {[%clk 0:02:56.2]}
4. Nc3 {[%clk 0:02:52.2]} 4... c5 {[%clk 0:02:55.3]} 5. exd5 {[%clk 0:02:50]}
5... cxd4 {[%clk 0:02:52.5]} 6. Nce2 {[%clk 0:02:47.9]} 6... Qxd5 {[%clk
0:02:46.3]} 7. Nf3 {[%clk 0:02:44.3]} 7... Nf6 {[%clk 0:02:18.6]} 8. Nexd4
{[%clk 0:02:21.4]} 8... Bc5 {[%clk 0:02:15.5]} 9. O-O {[%clk 0:02:13.8]} 9...
O-O {[%clk 0:02:11.9]} 10. Re1 {[%clk 0:02:11.1]} 10... Nc6 {[%clk 0:02:08.5]}
11. c4 {[%clk 0:02:07.5]} 11... Qd6 {[%clk 0:02:04.4]} 12. Nxc6 {[%clk
0:02:05.8]} 12... Qxc6 {[%clk 0:02:01.7]} 13. Ne5 {[%clk 0:02:05.9]} 13... Qb6
{[%clk 0:01:54.7]} 14. Qe2 {[%clk 0:02:06.3]} 14... h6 {[%clk 0:01:30.6]} 15. b4
{[%clk 0:01:57]} 15... Qxb4 {[%clk 0:01:15.7]} 16. Rb1 {[%clk 0:01:57.3]} 16...
Qa5 {[%clk 0:01:10.6]} 17. Rb3 {[%clk 0:01:57.2]} 17... Rb8 {[%clk 0:00:48.7]}
18. Bd2 {[%clk 0:01:51.2]} 18... Qxa2 {[%clk 0:00:45.6]} 19. Reb1 {[%clk
0:01:50.3]} 19... Rd8 {[%clk 0:00:42]} 20. R3b2 {[%clk 0:01:35.5]} 20... Qa4
{[%clk 0:00:41.5]} 21. Qf3 {[%clk 0:01:22]} 21... Bd4 {[%clk 0:00:36.3]} 22. Nc6
{[%clk 0:01:14.5]} 22... Bxb2 {[%clk 0:00:26.3]} 23. Nxd8 {[%clk 0:01:14.5]}
23... Bd4 {[%clk 0:00:19.1]} 24. Nc6 {[%clk 0:01:14.4]} 24... bxc6 {[%clk
0:00:17.8]} 25. Rxb8 {[%clk 0:01:13.3]} 25... Qa1+ {[%clk 0:00:17]} 26. Rb1
{[%clk 0:01:13]} 26... Qa4 {[%clk 0:00:16.2]} 27. Rb8 {[%clk 0:01:09.5]} 27...
Qa1+ {[%clk 0:00:15.4]} 28. Bf1 {[%clk 0:01:09.4]} 28... Kh7 {[%clk 0:00:10.4]}
29. Rxc8 {[%clk 0:01:09]} 29... e5 {[%clk 0:00:10.7]} 30. Rxc6 {[%clk
0:01:06.5]} 30... e4 {[%clk 0:00:10.1]} 31. Qf5+ {[%clk 0:01:06.5]} 31... g6
{[%clk 0:00:10.2]} 32. Qf4 {[%clk 0:01:06.2]} 32... Kg7 {[%clk 0:00:09]} 33.
Qxh6+ {[%clk 0:01:05.9]} 1-0

[Event "*** Titled Tuesday Blitz"]
[Site "Chess.com"]
[Date "2020.05.12"]
[Round "5"]
[White "leoduarte"]
[Black "davidkalashian"]
[Result "0-1"]
[WhiteElo "2367"]
[BlackElo "2515"]
[TimeControl "180+1"]
[EndTime "10:54:39 PDT"]
[Termination "davidkalashian won on time"]

1. e4 {[%clk 0:03:00.9]} 1... c6 {[%clk 0:02:59.2]} 2. d4 {[%clk 0:03:00.3]}
2... g6 {[%clk 0:03:00.1]} 3. Nc3 {[%clk 0:02:56.6]} 3... Bg7 {[%clk 0:03:00]}
4. Nf3 {[%clk 0:02:56.5]} 4... d6 {[%clk 0:02:59.8]} 5. h3 {[%clk 0:02:52.5]}
5... Nf6 {[%clk 0:03:00]} 6. Be2 {[%clk 0:02:52.6]} 6... O-O {[%clk 0:03:00]} 7.
O-O {[%clk 0:02:52.2]} 7... Nbd7 {[%clk 0:03:00.4]} 8. a4 {[%clk 0:02:48.2]}
8... e5 {[%clk 0:03:00.4]} 9. dxe5 {[%clk 0:02:48.4]} 9... dxe5 {[%clk
0:02:59.4]} 10. Bc4 {[%clk 0:02:48.1]} 10... Qe7 {[%clk 0:02:57.7]} 11. Be3
{[%clk 0:02:42.5]} 11... Nb6 {[%clk 0:02:57.4]} 12. Bb3 {[%clk 0:02:40.9]} 12...
Be6 {[%clk 0:02:55.1]} 13. a5 {[%clk 0:02:32.9]} 13... Nc4 {[%clk 0:02:50.1]}
14. Bxc4 {[%clk 0:02:11]} 14... Bxc4 {[%clk 0:02:51]} 15. Re1 {[%clk 0:02:11.1]}
15... Rfd8 {[%clk 0:02:49.8]} 16. Qc1 {[%clk 0:02:04.7]} 16... Nd7 {[%clk
0:02:47.2]} 17. b3 {[%clk 0:01:56.6]} 17... Be6 {[%clk 0:02:46.7]} 18. Rd1
{[%clk 0:01:46.8]} 18... f6 {[%clk 0:02:37.6]} 19. Na4 {[%clk 0:01:38.5]} 19...
Bf7 {[%clk 0:02:35.1]} 20. c4 {[%clk 0:00:50.5]} 20... Nf8 {[%clk 0:02:32.4]}
21. Qc2 {[%clk 0:00:34.1]} 21... Ne6 {[%clk 0:02:29.9]} 22. Rxd8+ {[%clk
0:00:33.7]} 22... Qxd8 {[%clk 0:02:27.6]} 23. b4 {[%clk 0:00:33.6]} 23... Qe7
{[%clk 0:02:25.5]} 24. Qc3 {[%clk 0:00:32.6]} 24... f5 {[%clk 0:02:16.9]} 25.
exf5 {[%clk 0:00:26.3]} 25... gxf5 {[%clk 0:02:17.8]} 26. Nxe5 {[%clk
0:00:26.6]} 26... f4 {[%clk 0:01:53.8]} 27. Bc1 {[%clk 0:00:25.5]} 27... Rd8
{[%clk 0:01:24.7]} 28. Bb2 {[%clk 0:00:24.6]} 28... Nd4 {[%clk 0:01:24.6]} 29.
Re1 {[%clk 0:00:18.2]} 29... Bxe5 {[%clk 0:01:22.7]} 30. Qxd4 {[%clk 0:00:17.7]}
30... Rxd4 {[%clk 0:01:20.7]} 31. Bxd4 {[%clk 0:00:17.6]} 31... Qxb4 {[%clk
0:01:21]} 32. Bxe5 {[%clk 0:00:12.2]} 32... Qxe1+ {[%clk 0:01:19.8]} 33. Kh2
{[%clk 0:00:11.1]} 33... Qxe5 {[%clk 0:01:20.7]} 0-1

[Event "*** Titled Tuesday Blitz"]
[Site "Chess.com"]
[Date "2020.05.12"]
[Round "5"]
[White "frankshar"]
[Black "PlotnikovPavel"]
[Result "0-1"]
[WhiteElo "2347"]
[BlackElo "2501"]
[TimeControl "180+1"]
[EndTime "10:54:39 PDT"]
[Termination "PlotnikovPavel won by resignation"]

1. d4 {[%clk 0:03:00.9]} 1... e6 {[%clk 0:03:00.1]} 2. c4 {[%clk 0:02:59.8]}
2... f5 {[%clk 0:02:59.8]} 3. Nc3 {[%clk 0:02:58.8]} 3... Nf6 {[%clk 0:02:59.7]}
4. g3 {[%clk 0:02:59]} 4... Bb4 {[%clk 0:02:58.7]} 5. Bg2 {[%clk 0:02:58.3]}
5... O-O {[%clk 0:02:59]} 6. Nf3 {[%clk 0:02:55.5]} 6... Qe7 {[%clk 0:02:58.3]}
7. O-O {[%clk 0:02:55.4]} 7... Bxc3 {[%clk 0:02:58]} 8. bxc3 {[%clk 0:02:54.8]}
8... d6 {[%clk 0:02:58.9]} 9. Ba3 {[%clk 0:02:41.4]} 9... Nbd7 {[%clk
0:02:58.3]} 10. Qc1 {[%clk 0:02:32.4]} 10... c5 {[%clk 0:02:56.1]} 11. dxc5
{[%clk 0:02:29.4]} 11... dxc5 {[%clk 0:02:55.9]} 12. Rd1 {[%clk 0:02:25.2]}
12... e5 {[%clk 0:02:52.9]} 13. e4 {[%clk 0:02:06.1]} 13... Nxe4 {[%clk
0:02:42.7]} 14. Qe3 {[%clk 0:02:01.8]} 14... Ndf6 {[%clk 0:02:15.2]} 15. h3
{[%clk 0:01:49.9]} 15... b6 {[%clk 0:02:14]} 16. Rd3 {[%clk 0:01:19]} 16... Bb7
{[%clk 0:02:08.1]} 17. Rad1 {[%clk 0:01:18.4]} 17... Rae8 {[%clk 0:01:53.2]} 18.
Nd2 {[%clk 0:01:14.1]} 18... Qe6 {[%clk 0:01:44.8]} 19. Nxe4 {[%clk 0:01:09.9]}
19... Bxe4 {[%clk 0:01:43.4]} 20. Bxe4 {[%clk 0:01:02.1]} 20... Nxe4 {[%clk
0:01:44.3]} 21. Rd5 {[%clk 0:01:00.2]} 21... Nf6 {[%clk 0:01:39.8]} 22. Rd6
{[%clk 0:00:56]} 22... Qxc4 {[%clk 0:01:38.9]} 23. Bb2 {[%clk 0:00:44.1]} 23...
f4 {[%clk 0:01:31.1]} 24. Qd3 {[%clk 0:00:40.6]} 24... Qxd3 {[%clk 0:01:27.9]}
25. R1xd3 {[%clk 0:00:40.1]} 25... e4 {[%clk 0:01:17.5]} 26. Rd1 {[%clk
0:00:38.5]} 26... e3 {[%clk 0:01:10.9]} 27. fxe3 {[%clk 0:00:37.1]} 27... fxg3
{[%clk 0:01:05.6]} 28. c4 {[%clk 0:00:26]} 28... Rxe3 {[%clk 0:01:02.8]} 29. Rf1
{[%clk 0:00:22]} 29... Ne4 {[%clk 0:00:54.8]} 30. Rxf8+ {[%clk 0:00:17]} 30...
Kxf8 {[%clk 0:00:55.7]} 31. Re6 {[%clk 0:00:14.5]} 31... Kf7 {[%clk 0:00:52.7]}
32. Kg2 {[%clk 0:00:15.4]} 32... Kxe6 {[%clk 0:00:52.2]} 0-1

[Event "*** Titled Tuesday Blitz"]
[Site "Chess.com"]
[Date "2020.05.12"]
[Round "5"]
[White "Antipov_Mikhail_Al"]
[Black "murtas73"]
[Result "1/2-1/2"]
[WhiteElo "2865"]
[BlackElo "2616"]
[TimeControl "180+1"]
[EndTime "10:54:41 PDT"]
[Termination "Game drawn by agreement"]

1. e4 {[%clk 0:02:53.8]} 1... e6 {[%clk 0:02:59.2]} 2. d4 {[%clk 0:02:53.7]}
2... d5 {[%clk 0:03:00.1]} 3. Nd2 {[%clk 0:02:53.9]} 3... Be7 {[%clk 0:02:59.2]}
4. Ngf3 {[%clk 0:02:53.6]} 4... Nf6 {[%clk 0:02:59.6]} 5. e5 {[%clk 0:02:54.2]}
5... Nfd7 {[%clk 0:02:59.3]} 6. Bd3 {[%clk 0:02:54.5]} 6... c5 {[%clk
0:03:00.2]} 7. c3 {[%clk 0:02:54]} 7... Nc6 {[%clk 0:03:00.2]} 8. O-O {[%clk
0:02:54.1]} 8... g5 {[%clk 0:03:00.1]} 9. Nb1 {[%clk 0:02:54.4]} 9... g4 {[%clk
0:02:58.1]} 10. Ne1 {[%clk 0:02:54.1]} 10... cxd4 {[%clk 0:02:55.3]} 11. cxd4
{[%clk 0:02:53.9]} 11... Nxd4 {[%clk 0:02:55.8]} 12. Qxg4 {[%clk 0:02:53]} 12...
Nc6 {[%clk 0:02:55.3]} 13. Qg7 {[%clk 0:02:52.9]} 13... Rf8 {[%clk 0:02:52.2]}
14. Nf3 {[%clk 0:02:43.7]} 14... Nc5 {[%clk 0:02:43.2]} 15. Bxh7 {[%clk
0:02:41.8]} 15... Bd7 {[%clk 0:02:41.1]} 16. Nc3 {[%clk 0:02:36.7]} 16... Qb6
{[%clk 0:02:38]} 17. b4 {[%clk 0:02:07.7]} 17... Qxb4 {[%clk 0:02:32.7]} 18. Bd2
{[%clk 0:02:06.6]} 18... Qb6 {[%clk 0:02:10.9]} 19. Rab1 {[%clk 0:02:05.1]}
19... Qa6 {[%clk 0:02:09.9]} 20. Nb5 {[%clk 0:01:56.1]} 20... O-O-O {[%clk
0:02:08.5]} 21. Bg5 {[%clk 0:01:53.8]} 21... Kb8 {[%clk 0:02:01]} 22. h4 {[%clk
0:01:39.4]} 22... d4 {[%clk 0:01:44.1]} 23. Bxe7 {[%clk 0:01:21.6]} 23... Nxe7
{[%clk 0:01:43.4]} 24. Nfxd4 {[%clk 0:01:22.3]} 24... Nc8 {[%clk 0:01:31.4]} 25.
Rfc1 {[%clk 0:01:17.9]} 25... Bxb5 {[%clk 0:01:21.2]} 26. Nxb5 {[%clk
0:01:18.8]} 26... Nd7 {[%clk 0:01:08.7]} 27. h5 {[%clk 0:01:18.3]} 27... Ndb6
{[%clk 0:01:00.1]} 28. h6 {[%clk 0:01:16.2]} 28... Nd5 {[%clk 0:00:59.2]} 29.
Be4 {[%clk 0:00:58.8]} 29... Qxa2 {[%clk 0:00:56.3]} 30. h7 {[%clk 0:00:52.3]}
30... Nce7 {[%clk 0:00:51.5]} 31. Nd6 {[%clk 0:00:49.5]} 31... b6 {[%clk
0:00:51.1]} 32. Nxf7 {[%clk 0:00:48]} 32... Qd2 {[%clk 0:00:45.3]} 33. Nxd8
{[%clk 0:00:45.9]} 33... Qxf2+ {[%clk 0:00:41.8]} 34. Kh1 {[%clk 0:00:39.1]}
34... Qh4+ {[%clk 0:00:40.9]} 35. Kg1 {[%clk 0:00:39.1]} 1/2-1/2

[Event "*** Titled Tuesday Blitz"]
[Site "Chess.com"]
[Date "2020.05.12"]
[Round "5"]
[White "ManuDavid2910"]
[Black "tsvet2005"]
[Result "1-0"]
[WhiteElo "2708"]
[BlackElo "2483"]
[TimeControl "180+1"]
[EndTime "10:54:42 PDT"]
[Termination "ManuDavid2910 won by resignation"]

1. e4 {[%clk 0:03:00.9]} 1... c5 {[%clk 0:03:00.1]} 2. Nf3 {[%clk 0:03:01.1]}
2... d6 {[%clk 0:03:00.6]} 3. c3 {[%clk 0:03:01.4]} 3... Nf6 {[%clk 0:03:01]} 4.
Bc4 {[%clk 0:03:02.3]} 4... Nxe4 {[%clk 0:02:47.3]} 5. Qa4+ {[%clk 0:03:01.2]}
5... Nc6 {[%clk 0:02:42.5]} 6. Bxf7+ {[%clk 0:03:00.5]} 6... Kxf7 {[%clk
0:02:43.4]} 7. Qxe4 {[%clk 0:03:01.4]} 7... e5 {[%clk 0:02:21.6]} 8. d4 {[%clk
0:03:00.1]} 8... d5 {[%clk 0:02:15.3]} 9. Nxe5+ {[%clk 0:02:53.8]} 9... Nxe5
{[%clk 0:02:14.7]} 10. Qxe5 {[%clk 0:02:54.7]} 10... cxd4 {[%clk 0:02:04.7]} 11.
Qxd4 {[%clk 0:02:54.2]} 11... Be6 {[%clk 0:01:56.8]} 12. O-O {[%clk 0:02:53.4]}
12... Be7 {[%clk 0:01:56.8]} 13. Rd1 {[%clk 0:02:47.5]} 13... Bf6 {[%clk
0:01:56.3]} 14. Qf4 {[%clk 0:02:47.8]} 14... Re8 {[%clk 0:01:54.7]} 15. Nd2
{[%clk 0:02:44.6]} 15... Kg8 {[%clk 0:01:42.7]} 16. Nf3 {[%clk 0:02:43.5]} 16...
Bf7 {[%clk 0:01:38.6]} 17. h3 {[%clk 0:02:24.1]} 17... Re4 {[%clk 0:01:34.5]}
18. Qg3 {[%clk 0:02:24]} 18... h6 {[%clk 0:01:33.3]} 19. Bxh6 {[%clk 0:02:22.9]}
19... Qb6 {[%clk 0:01:26.6]} 20. Bg5 {[%clk 0:02:21.8]} 20... Rae8 {[%clk
0:01:22.9]} 21. Bxf6 {[%clk 0:02:17.1]} 21... Qxf6 {[%clk 0:01:23.8]} 22. Ng5
{[%clk 0:02:17.5]} 22... Re2 {[%clk 0:01:23.9]} 23. Qh4 {[%clk 0:02:03.6]} 23...
Bg6 {[%clk 0:00:59.2]} 24. Rxd5 {[%clk 0:01:59.4]} 24... Rxb2 {[%clk 0:00:58.9]}
25. Rad1 {[%clk 0:01:33]} 25... Rbe2 {[%clk 0:00:52.8]} 26. Rd6 {[%clk
0:00:44.2]} 26... Re1+ {[%clk 0:00:47.8]} 27. Kh2 {[%clk 0:00:44.3]} 27... Qe5+
{[%clk 0:00:45.5]} 28. f4 {[%clk 0:00:44]} 28... Qf5 {[%clk 0:00:23.2]} 29. Rxe1
{[%clk 0:00:41.6]} 29... Rxe1 {[%clk 0:00:24.1]} 30. Qxe1 {[%clk 0:00:41.1]}
30... Qxf4+ {[%clk 0:00:23.4]} 31. Qg3 {[%clk 0:00:41.1]} 1-0

[Event "*** Titled Tuesday Blitz"]
[Site "Chess.com"]
[Date "2020.05.12"]
[Round "5"]
[White "CrushingKings"]
[Black "DenisQ"]
[Result "1-0"]
[WhiteElo "2477"]
[BlackElo "2626"]
[TimeControl "180+1"]
[EndTime "10:54:42 PDT"]
[Termination "CrushingKings won by resignation"]

1. e4 {[%clk 0:03:00.9]} 1... c6 {[%clk 0:02:59.4]} 2. Nf3 {[%clk 0:03:01]} 2...
d5 {[%clk 0:02:59.2]} 3. Nc3 {[%clk 0:03:01.6]} 3... Bg4 {[%clk 0:02:54.8]} 4.
h3 {[%clk 0:03:01.6]} 4... Bh5 {[%clk 0:02:54.8]} 5. exd5 {[%clk 0:02:59.9]}
5... cxd5 {[%clk 0:02:54.4]} 6. g4 {[%clk 0:03:00.5]} 6... Bg6 {[%clk 0:02:54]}
7. Bb5+ {[%clk 0:03:00.9]} 7... Nc6 {[%clk 0:02:53.9]} 8. Ne5 {[%clk 0:03:01]}
8... Rc8 {[%clk 0:02:53.7]} 9. d4 {[%clk 0:03:01.2]} 9... e6 {[%clk 0:02:53.3]}
10. Qe2 {[%clk 0:03:01.7]} 10... Bb4 {[%clk 0:02:52.4]} 11. h4 {[%clk
0:03:01.9]} 11... Ne7 {[%clk 0:02:51.4]} 12. h5 {[%clk 0:03:02.1]} 12... Be4
{[%clk 0:02:51]} 13. f3 {[%clk 0:03:01.8]} 13... O-O {[%clk 0:02:51]} 14. Bxc6
{[%clk 0:03:01.7]} 14... Nxc6 {[%clk 0:02:50.7]} 15. Nxc6 {[%clk 0:03:02]} 15...
Rxc6 {[%clk 0:02:50.9]} 16. O-O {[%clk 0:03:01.4]} 16... Bxc3 {[%clk 0:02:07]}
17. bxc3 {[%clk 0:03:00.9]} 17... Rxc3 {[%clk 0:02:05.5]} 18. Bd2 {[%clk
0:03:00.7]} 18... Rxc2 {[%clk 0:01:40.9]} 19. Rf2 {[%clk 0:02:58]} 19... Qb6
{[%clk 0:01:18.3]} 20. Qe3 {[%clk 0:02:34.2]} 20... Bxf3 {[%clk 0:00:45.4]} 21.
Rxf3 {[%clk 0:02:30.9]} 21... Rxa2 {[%clk 0:00:45.2]} 22. Rxa2 {[%clk
0:02:24.3]} 22... Qb1+ {[%clk 0:00:44.2]} 23. Kg2 {[%clk 0:02:23.8]} 23... Qxa2
{[%clk 0:00:44.2]} 24. h6 {[%clk 0:02:24.4]} 24... gxh6 {[%clk 0:00:38.4]} 25.
Qxh6 {[%clk 0:02:18.7]} 25... Qc2 {[%clk 0:00:37.4]} 26. Kg3 {[%clk 0:02:04.5]}
26... Qe4 {[%clk 0:00:23.2]} 27. Bg5 {[%clk 0:01:44.6]} 27... Qxd4 {[%clk
0:00:19.8]} 28. Bf6 {[%clk 0:01:27.5]} 28... Qg1+ {[%clk 0:00:19.7]} 29. Kh4
{[%clk 0:01:10.3]} 29... Qe1+ {[%clk 0:00:19.4]} 30. Kg5 {[%clk 0:00:53.1]} 1-0